Cogmind - Beta 17 @@@ ROGUE MODE // 2026.07.08 @ 22:39:42 Player: IsAway Result: Destroyed by WH-XP6(g) with Salvaging Laser Performance ------------- Evolutions (0) 0 Regions Visited (4) 800 Robots Destroyed (5) 25 Value Destroyed (51) 51 Prototype IDs (2) 40 Alien Tech Used (0) 0 Bonus (940) 940 TOTAL SCORE: 1856 Bonus ------- Follower Combat Kills 140 Registered with UFD 300 Met Optimus in HQ 500 Cogmind --------- Core Integrity 0/250 Matter 300/300 Energy 100/100 System Corruption 1% Temperature Cool (6) Movement Core (100) Ox1 Location -8/Scraptown Parts ------- > --- POWER (1) -------- (None) > --- PROPULSION (2) --- (None) > --- UTILITY (2) ------ Small Storage Unit Improved Signal Interpreter > --- WEAPON (2) ------- (None) > --- INVENTORY (8) ---- Advanced Heat Sink Energy Well (350) Improved Sensor Array Jamming Amplifier Improved Medium Armor Plating Hacking Suite Overtuned Pulse Rifle Peak State ------------ > --- POWER ------------ Angular Momentum Engine > --- PROPULSION ------- Improved Carbon-fiber Leg Improved Titanium Leg > --- UTILITY ---------- Small Storage Unit Improved Signal Interpreter > --- WEAPON ----------- High-powered Shock Rifle Heavy Rocket Launcher > --- INVENTORY -------- Advanced Heat Sink Energy Well Improved Sensor Array Jamming Amplifier Improved Medium Armor Plating Hacking Suite Large Botcube [Rating: 30] Favorites ----------- Power Light Ion Engine Engine Light Ion Engine Propulsion Improved Titanium Leg Leg Improved Titanium Leg Wheel Wheel Hover Unit Backup Propulsion I Flight Unit Nuclear Pulse Thruster Utility Small Storage Unit Device Seismic Detector Storage Small Storage Unit Processor Signal Interpreter Weapon EM Pulse Gun Energy Gun EM Pulse Gun Ballistic Gun Assault Rifle Launcher Heavy Rocket Launcher Special Weapon CPS Tube Build | -11 -10 -10 -10 -8 ------- Run | Yrd Mat Min Sub Scr Slots Evolved . | . . . . . Power . | . . . . . Propulsion . | . . . . . Utility . | . . . . . Weapon . | . . . . . Parts Attached 23 | 8 1 1 3 10 Power 3 | 1 . . . 2 Engine 3 | 1 . . . 2 Core . | . . . . . Reactor . | . . . . . Propulsion 8 | 2 . 1 1 4 Treads . | . . . . . Leg 2 | . . . . 2 Wheel 4 | 2 . 1 1 . Hover . | . . . . . Flight 2 | . . . . 2 Utility 5 | 2 1 . 1 1 Device 2 | 1 . . 1 . Storage 1 | 1 . . . . Processor 2 | . 1 . . 1 Hackware . | . . . . . Protection . | . . . . . Artifact . | . . . . . Weapon 7 | 3 . . 1 3 Energy Gun 3 | 1 . . 1 1 Energy Cannon . | . . . . . Ballistic Gun 1 | 1 . . . . Ballistic Cannon . | . . . . . Launcher 1 | . . . . 1 Special Weapon 2 | 1 . . . 1 Impact Weapon . | . . . . . Slashing Weapon . | . . . . . Piercing Weapon . | . . . . . Special Melee Weapon . | . . . . . Unidentified Prototypes . | . . . . . Parts Lost 6 | . . . 1 5 Power 1 | . . . . 1 Propulsion 3 | . . . 1 2 Utility . | . . . . . Weapon 2 | . . . . 2 Highest Loss Streak 5 | . . . 1 5 To Critical Strikes . | . . . . . Average Backups 6 | 1 6 5 5 6 Power . | . 1 1 1 . Propulsion . | . 2 . . . Utility 3 | . 1 2 2 4 Weapon 1 | . 2 2 2 . Tool/Special . | . . . . . Unused Backups 13 | . . 1 . 12 Power 1 | . . . . 1 Propulsion 1 | . . 1 . . Utility 8 | . . . . 8 Weapon 1 | . . . . 1 Tool/Special 2 | . . . . 2 Average Slot Usage (%) 96 | . 100 100 97 95 Engine 13 | . 14 14 14 13 Leg 13 | . . . . 17 Wheel 10 | . 5 26 28 6 Device 2 | . 12 12 8 . Storage 11 | . 14 1 5 14 Processor 13 | . 1 14 14 14 Energy Gun 16 | . 14 14 16 17 Ballistic Gun 1 | . . 8 8 . Launcher 3 | . . . . 4 Special Weapon 5 | . 14 5 . 5 Peak Build Rating 30 | 7 7 7 9 30 Average Rating 17 | 5 6 7 7 21 On Entrance 5 | . 7 7 7 8 Avg Prop Armor Cover (%) 5 | . . . . 5 Naked Turns . | . . . . . Heaviest Build 30 | 13 12 11 14 30 Greatest Support 38 | 20 20 20 30 38 Greatest Overweight (x) 6 | . . . . 6 Average Overweight (x) . | . . . . . Largest Inventory Capacity 8 | 8 8 8 8 8 Average Capacity 7 | 7 8 5 6 8 Most Carried 8 | 4 8 8 8 8 Average Carried 7 | 1 6 5 5 7 Final Capacity 8 | 8 8 5 8 8 Final Carried 8 | 4 8 5 7 7 Class Distribution -------------------- 100% | Mutant Dominant Class ---------------- Mutant | -10/Materials Mutant | -10/Mines Mutant | -10/Subcaves Mutant | -8/Scraptown Resources | -11 -10 -10 -10 -8 ----------- Run | Yrd Mat Min Sub Scr Matter Collected 516 | 288 . 79 14 135 Remotely . | . . . . . Salvage Created 172 | 135 . 37 . . Parts 15 | 7 . 8 . . Haulers Intercepted . | . . . . . Recyclers Shooed . | . . . . . Parts Field Recycled . | . . . . . Retrieved Matter . | . . . . . Parts Self-Destructed 4 | . . . 4 . Prevented . | . . . . . Parts Restored . | . . . . . Kills | -11 -10 -10 -10 -8 ------- Run | Yrd Mat Min Sub Scr Combat Hostiles Destroyed 1 | . . 1 . . Guns 1 | . . 1 . . Classes Destroyed 4 | 2 . 2 . . Worker 1 | . . 1 . . Tunneler 2 | 2 . . . . Recycler 1 | 1 . . . . Swarmer 1 | . . 1 . . Best Kill Streak 3 | 3 . 2 . . Combat Bots Only 1 | . . 1 . . Max Kills in Single Turn 1 | 1 . 1 . . Gunslinging . | . . . . . Exploded . | . . . . . Melee . | . . . . . Uniques/NPCs Destroyed . | . . . . . Combat | -11 -10 -10 -10 -8 -------- Run | Yrd Mat Min Sub Scr Hostile Shots Fired 70 | . . 6 17 47 Missed 29 | . . 3 7 19 Hits 41 | . . 3 10 28 Projectile 41 | . . 3 10 28 Critical Strikes 3 | . . . . 3 Damage Taken 792 | 32 . 67 244 449 Core 251 | 32 . . 92 127 Absorbed by Shields . | . . . . . Core Remaining (%) 87 | 87 . . . . Volleys Fired 22 | 6 10 5 . 1 Largest 2 | 2 2 2 . 1 Hottest 140 | 60 140 100 . 39 Shots Fired 32 | 12 11 8 . 1 Gun 19 | 12 1 6 . . Cannon . | . . . . . Launcher 1 | . . . . 1 Special 12 | . 10 2 . . Kinetic 9 | 6 . 3 . . Thermal 12 | . 10 2 . . Explosive 1 | . . . . 1 Electromagnetic 10 | 6 1 3 . . Robot Hit Streak 9 | 8 . 9 . . Robot Miss Streak 2 | 1 . 2 . . Penetration Max . | . . . . . Secondary Targets 1 | . . 1 . . Max Gunslinging Chain 1 | . . 1 . . Shots Hit Robots 12 | 9 . 3 . . Core Hits 6 | 4 . 2 . . Critical Kills . | . . . . . Critical Parts Destroyed . | . . . . . Critical Strikes . | . . . . . Melee Attacks . | . . . . . Impact . | . . . . . Slashing . | . . . . . Piercing . | . . . . . Sneak Attacks . | . . . . . Combat Hostiles . | . . . . . Follow-up Attacks . | . . . . . Damage Inflicted 258 | 148 . 110 . . Guns 136 | 100 . 36 . . Cannons . | . . . . . Explosions 122 | 48 . 74 . . Melee . | . . . . . Ramming . | . . . . . Kinetic 62 | 48 . 14 . . Thermal 122 | 48 . 74 . . Explosive . | . . . . . Electromagnetic 74 | 52 . 22 . . Impact . | . . . . . Slashing . | . . . . . Piercing . | . . . . . Highest Corruption 1 | . . . . 1 Average Corruption 1 | . . . . 1 Corruption Purged . | . . . . . Corruption Blocked . | . . . . . Overload Shots . | . . . . . Overflow Damage 45 | . . 21 . 24 Projectiles . | . . . . . Explosions 45 | . . 21 . 24 Melee . | . . . . . Knockbacks . | . . . . . Impact . | . . . . . Kinetic . | . . . . . Secondary . | . . . . . Self-Inflicted Damage 121 | 32 . 33 . 56 Shots 3 | 1 . 1 . 1 Rammed . | . . . . . Targets Rammed . | . . . . . Kicked . | . . . . . Crushed . | . . . . . Highest Temperature 122 | 12 122 40 . 24 Average Temperature 42 | 12 55 18 . 6 Received Heat Transfer 270 | . . 6 72 192 Siege Activations . | . . . . . Martial Activations . | . . . . . Shielding Activations . | . . . . . Robots Disrupted . | . . . . . Combat Hostiles . | . . . . . Robots Corrupted . | . . . . . Combat Hostiles . | . . . . . Parts Fried 2 | 2 . . . . Impact Corruptions . | . . . . . Robots Melted . | . . . . . Combat Hostiles . | . . . . . Parts Melted . | . . . . . Heat Transferred 100 | . . 100 . . Parts Sabotaged . | . . . . . Parts Stolen . | . . . . . Parts Stripped . | . . . . . Power Chain Reactions 2 | 1 . 1 . . Alert | -11 -10 -10 -10 -8 ------- Run | Yrd Mat Min Sub Scr Maximum Alert Level . | . . . . . Low Security (%) 100 | 100 100 100 . . Level 1 . | . . . . . Level 2 . | . . . . . Level 3 . | . . . . . Level 4 . | . . . . . Level 5 . | . . . . . High Security . | . . . . . Max Security . | . . . . . Peak Influence 114 | 10 15 114 . . Initial . | . . . . . Average 17 | . 2 21 . . Influence Increases 156 | 15 25 116 . . Destroy 0b10 Robot/C 60 | . . 60 . . Destroy 0b10 Robot/NC 20 | 15 . 5 . . Destroy Leader 10 | . . 10 . . Allied During Kill 22 | . . 22 . . Successful Hack 6 | . 6 . . . Disable Machine 30 | . 15 15 . . Destroy Structure 8 | . 4 4 . . Influence Decreases 156 | 15 24 117 . . Entered New Map 1 | . . 1 . . Time Decay 155 | 15 24 116 . . Squads Dispatched . | . . . . . Investigation . | . . . . . Extermination . | . . . . . Reinforcement . | . . . . . Assault . | . . . . . Garrison . | . . . . . Intercept . | . . . . . Searches Triggered . | . . . . . Construction Impeded . | . . . . . Haulers Reinforced . | . . . . . Active Scanning Responses . | . . . . . Cargo Convoy Interrupts . | . . . . . Stealth | -11 -10 -10 -10 -8 --------- Run | Yrd Mat Min Sub Scr Distress Signals . | . . . . . Communications Jammed . | . . . . . Distress Signals . | . . . . . Times Spotted 27 | . . 3 4 20 Peak Tracking Total 8 | . . 3 2 8 Tactical Retreats 2 | . . . . 2 Traps | -11 -10 -10 -10 -8 ------- Run | Yrd Mat Min Sub Scr Traps Triggered . | . . . . . Indirectly . | . . . . . Trap Hack Attempts . | . . . . . Triggered . | . . . . . Disarmed . | . . . . . Reprogrammed . | . . . . . Reused . | . . . . . Traps Extracted . | . . . . . Installed . | . . . . . Triggered . | . . . . . Machines | -11 -10 -10 -10 -8 ---------- Run | Yrd Mat Min Sub Scr Machines Disabled 3 | . 1 1 . 1 Max in Single Turn 1 | . 1 1 . 1 Machines Repaired . | . . . . . Machines Dismantled . | . . . . . Machines Sabotaged . | . . . . . Overloaded Fab Kills . | . . . . . Hacking | -11 -10 -10 -10 -8 --------- Run | Yrd Mat Min Sub Scr Machines Accessed 7 | . 1 . . 6 Terminals . | . . . . . Fabricators . | . . . . . Repair Stations 1 | . 1 . . . Recycling Units . | . . . . . Scanalyzers . | . . . . . Garrison Access . | . . . . . Total Hacks 47 | . 2 . . 45 Successful 46 | . 1 . . 45 Failed 1 | . 1 . . . Catastrophic . | . . . . . Database Lockouts . | . . . . . Manual 5 | . . . . 5 Terminals . | . . . . . Fabricators . | . . . . . Repair Stations 2 | . 2 . . . Recycling Units . | . . . . . Scanalyzers . | . . . . . Garrison Access . | . . . . . Terminal Hacks 45 | . . . . 45 Record 45 | . . . . 45 Fabricator Hacks . | . . . . . Repair Station Hacks 1 | . 1 . . . Refit 1 | . 1 . . . Recycling Unit Hacks . | . . . . . Scanalyzer . | . . . . . Garrison Access Hacks . | . . . . . Unauthorized Hacks . | . . . . . Terminals . | . . . . . Fabricators . | . . . . . Repair Stations . | . . . . . Recycling Units . | . . . . . Scanalyzers . | . . . . . Garrison Access . | . . . . . Data Cores Recovered . | . . . . . Used . | . . . . . Hacking Detections . | . . . . . Full Trace Events . | . . . . . Feedback Events . | . . . . . Feedback Blocked . | . . . . . Robot Schematics Acquired . | . . . . . Robots Built . | . . . . . Authchips . | . . . . . Time . | . . . . . Total Robot Build Rating . | . . . . . Part Schematics Acquired . | . . . . . Parts Built . | . . . . . Authchips . | . . . . . Time . | . . . . . Total Part Build Rating . | . . . . . Part Studies Acquired . | . . . . . Parts Repaired . | . . . . . Time . | . . . . . Parts Recycled . | . . . . . Recycled Matter . | . . . . . Retrieved Matter . | . . . . . Retrieved Components . | . . . . . Parts Scanalyzed . | . . . . . Part Schematics Acquired . | . . . . . Parts Damaged . | . . . . . Bothacking | -11 -10 -10 -10 -8 ------------ Run | Yrd Mat Min Sub Scr Used RIF Installer . | . . . . . Robots Hacked . | . . . . . Non-combat . | . . . . . Combat . | . . . . . Robot Hacks Applied . | . . . . . Relay Couplers Released . | . . . . . Fabnet Peak Effective % . | . . . . . Robots Rewired . | . . . . . Allies Hacked . | . . . . . Hacks Repelled . | . . . . . Allies | -11 -10 -10 -10 -8 -------- Run | Yrd Mat Min Sub Scr Total Allies 6 | . . 5 . 1 Largest Group 5 | . . 5 5 4 Highest-Rated Group 85 | . . 81 85 54 Highest-Rated Ally 39 | . . 31 31 39 Total Orders 2 | . . . 2 . GUARD 2 | . . . 2 . Ally Attacks 42 | . . 5 26 11 Total Damage 576 | . . 41 397 138 Kills 6 | . . 2 3 1 Allies Corrupted . | . . . . . Allies Melted . | . . . . . Intel | -11 -10 -10 -10 -8 ------- Run | Yrd Mat Min Sub Scr Active Infowar (turns) 848 | 16 87 604 141 . Sensors 120 | . . . 120 . Seismic 728 | 16 87 604 21 . Robot Analysis Total . | . . . . . Derelict Logs Recovered 4 | . . 2 1 1 Drone Launches . | . . . . . Drone Recoveries . | . . . . . Exploration | -11 -10 -10 -10 -8 ------------- Run | Yrd Mat Min Sub Scr Turns Passed 4080 | 79 96 639 241 3025 Spaces Moved 2980 | 53 66 661 193 2007 Core 311 | 3 . . . 308 Treads . | . . . . . Legs 1668 | . . . . 1668 Wheels 910 | 50 15 621 193 31 Hover 91 | . 51 40 . . Flight . | . . . . . Fastest Speed 50 | 50 76 76 80 100 Average Speed 125 | 78 76 79 87 147 Slowest Speed 350 | 80 80 80 110 350 Overloaded Moves . | . . . . . Propulsion Burnouts . | . . . . . Robots Hopped . | . . . . . Potential Cave-ins . | . . . . . Cave-ins Triggered . | . . . . . Exploration Rate (%) 44 | 4 19 98 16 84 Regions Visited 4 Branch Regions 3 Pre-discovered Areas 2 | . . 1 . 1 Known Exits Taken 3 | . 1 1 1 . Unknown Exits Taken 1 | 1 . . . . Scrap Searched 5 | . . 1 . 4 Spaces Dug 9 | . 7 2 . . Terrain Destroyed 31 | 4 7 4 . 16 Melee . | . . . . . Projectile 9 | . 7 2 . . AOE 22 | 4 . 2 . 16 Terrain Rammed . | . . . . . Walls Destroyed . | . . . . . Machines Disabled . | . . . . . Actions | -11 -10 -10 -10 -8 --------- Run | Yrd Mat Min Sub Scr Total 3257 | 74 80 760 267 2076 Wait 162 | 4 . 86 58 14 Move 2976 | 52 65 660 192 2007 Hop . | . . . . . Pick Up 31 | 4 2 . 7 18 Fast Attach 14 | 7 . . . 7 Attach 3 | . . . 1 2 Detach 3 | . 2 . 1 . Swap 12 | 1 1 5 3 2 Drop 34 | . . 4 5 25 Fire 22 | 6 10 5 . 1 Melee . | . . . . . Ram . | . . . . . Kick . | . . . . . Crush . | . . . . . Escape Stasis . | . . . . . Rewire . | . . . . . Trap . | . . . . . Miscellaneous . | . . . . . Route ------- -11/Scrapyard -10/Materials -10/Mines (discovered 3 exits: *Mat x2 / *Sub) -10/Subcaves -8/Scraptown (discovered 1 exit: [*Fac]) History --------- Turn | Location | Event 18 | -11/Scrapyard | Discovered new exit (range 16) 80 | -11/Scrapyard | Entered Materials 165 | -10/Materials | Discovered new exit (range 5) 169 | -10/Materials | Identified exit to Mines 176 | -10/Materials | Entered Mines 253 | -10/Mines | Assisted by bots powering up and referring to "LRC-V3" 308 | -10/Mines | Build established: Mutant 383 | -10/Mines | Learned location of 1 exit from Materials 457 | -10/Mines | Discovered new exit (range 10) 463 | -10/Mines | Identified exit to Materials 469 | -10/Mines | Learned location of Zion (-7) 510 | -10/Mines | Discovered exit to Materials (range 7) 745 | -10/Mines | Discovered new exit (range 7) 750 | -10/Mines | Identified exit to Subcaves 815 | -10/Mines | Entered Subcaves 815 | -10/Subcaves | Accompanied by 5 allies 816 | -10/Subcaves | Approached by a straggling Scientist 820 | -10/Subcaves | Led the pair of lost Derelicts to an unsafe place 891 | -10/Subcaves | Learned Materials garrison access intel 1035 | -10/Subcaves | Shifting Twisted Machinery released Flamer 1042 | -10/Subcaves | Scientist uncovered a shortcut to Scraptown 1046 | -10/Subcaves | Identified exit to Scraptown 1056 | -10/Subcaves | Entered Scraptown 1056 | -8/Scraptown | Accompanied by 4 allies 1223 | -8/Scraptown | Heard Great Nut preacher, LISTEN AND RECITE! 1498 | -8/Scraptown | Visited Fellowship of the Rings 1563 | -8/Scraptown | Visited Cave Peace 2105 | -8/Scraptown | Visited UFD Registry 2105 | -8/Scraptown | Registered with UFD as "Flexilauncher" 2137 | -8/Scraptown | Visited Spacefarers 2228 | -8/Scraptown | Visited Supply Room 2360 | -8/Scraptown | Visited Junk Repository 2747 | -8/Scraptown | Discovered new exit (range 5) 3121 | -8/Scraptown | Visited Comm Corps 3243 | -8/Scraptown | Visited Science Testing Area 3313 | -8/Scraptown | Scanned Subdweller tech in exchange for log data 3316 | -8/Scraptown | Learned location of Quarantine (-3) 3363 | -8/Scraptown | Guru changed UFD alias to "Toolrigger" 3495 | -8/Scraptown | Visited Junk Repository 3540 | -8/Scraptown | Visited Botcube Research 3550 | -8/Scraptown | Found Lrg. Botcube 3585 | -8/Scraptown | Visited LU-1G1's Boring Crew 3670 | -8/Scraptown | Visited Curators Association 3758 | -8/Scraptown | Visited Scrap Suit Storage 3816 | -8/Scraptown | Met Optimus 3816 | -8/Scraptown | Accepted into 0bPrime 3911 | -8/Scraptown | Visited Scrapoid Research Area 3991 | -8/Scraptown | Civil war broke out across Scraptown 4028 | -8/Scraptown | Core integrity fell below 50% 4071 | -8/Scraptown | Lrg. Botcube activated 4080 | -8/Scraptown | Core integrity fell below 20% 4081 | -8/Scraptown | Destroyed by WH-XP6(g) with Salvaging Laser Last Messages --------------- VI-T4M(r) follow-up attacks with Ripteeth. UV-KUO(j) Ovr. Titanium Leg ripped off. VI-T4M(r) suffers critical hit (Burn). Y6-XVX(j) heat spikes uncontrollably. MT-TJQ(E) cannibalizes Corrupted Ovr. Barrage Gun to repair Barrage Gun. 8P-8E7(j) destroyed. Y6-XVX(j) destroyed. MT-TJQ(E) destroyed. Dropped Lrg. Botcube. Lrg. Botcube begins transforming into Large Mutated Botcube. [Achievement: Frankenstein] Acquired 24 matter. TS-IH7(p) destroyed. Imp. Carbon-fiber Leg destroyed. Imp. Titanium Leg destroyed. Angular Momentum Engine destroyed. Acquired Ovr. Pulse Rifle. AK-8B0(j) heat short circuits Ovr. Pulse Rifle. Map ----- +----------------------------------------------------+ | ???? ??????##### "#""" ## ###############???????? | | """" "?"""""""""! "" "## """ """ #???????? | | =%! [%! % "## " """"" #???????? | | %/! = ## """ #???????? | | !=% "## #???????? | | ## "#???????? | | ""#???????? | | """""""""""""" """""" "## """ "#???????? | | """""?????"""""""""""" "## """"" ""#???????? | | ## ######??########" "## """ "#???????? | | ##????????#"" ##############???????? | | X"#????????#"" "## #"""""#""#????????? | | "" "" ##????????#"" "## !!!! !#????????? | | " "" X"#??????### g%= ## #????????? | | " ######### ""j!!%* #????????? | | "" gj=%/[ X" #????????? | | "" ! ! ##"#????????? | | " ######### #"" !! !!#???????????? | | " "" ""#??????###""%[ " ""#???????????? | | "" "" ##????????#""!=! " #####???????????? | | X"#????????#"!= %% "# #####??##?????????? | | ##????????#" %%! M ## ###"###"#?????????? | | ## ################"!!! ## "!" "=" #?????????? | | """"""""""""""""""""""%= ## """ """ ###???????? | | """""""""""""" " """!"%=%!!% "#???????? | | !![* @ "## ""##???????? | | [!=% !=## "$#????????? | | j =*= =[!%## ""##???????? | | =%[ ![[=!## "#???????? | | ! =%=%!!# """ """ ###???????? | | """""" """"""" """ "" !!=*[## "!" "*" #?????????? | | ###### ########### ###;;[%=!##"###"###"#?????????? | | #" #?# * ;j![####?###??##?????????? | | #" !"""#?# # # ## !%#????????????????????? | | # " ! ""#?# # # ## g#????????????????????? | | #"" """#?# # # ##jg #????????????????????? | | ?"" """"#?# ####### ## #????????????????????? | | ?###"#######?# ## ! #????????????????????? | | ?????????????# # """ # ## % ????????????????????? | | ?????????????# # "#" # ## * ???????????????????? | | ?????????????# # """ # ## ??????????????????? | | ?????????????# # # ## ??????????????????? | | ?????????????############ ?????????????????? | | ????????????????????????# #####????????????????? | | ????????????????????????# #????????????????????? | | ????????????????????????# "????????????????????? | | ????????????????????????# "????????????????????? | | ???????????????????????? ????????????????????? | | ???????????????????????? "????????????????????? | | ???????????????????????? "????????????????????? | +----------------------------------------------------+ Best States ------------- Heat Dissipation 25 Energy Generation 18 Energy Capacity 300 Matter Stores 300 Matter Capacity 300 Sight Range 16 Robot Scan Range 14 Terrain Scan Density 10 Evasion (%) 55 Item Schematics ----------------- None Robot Schematics ------------------ None Fabricated ------------ Nothing Repaired ---------- Nothing Studied --------- None Alien Tech Used ----------------- None Achievements -------------- Civilization 2243 Frankenstein Link The Feds Longdome?! Nice Directions, Buddy Challenges ------------ None Game ------ Seed TiamatBarrageArachnoskeleton Manual? 0 Play Time 01:09:18 Cumulative 14.1 hours Start 2026.07.08 @ 21:15:28 End 2026.07.08 @ 22:39:42 Sessions 1 Manual Loads 0 Difficulty Rogue Special Mode None Game No. 18 Rogue 18 Adventurer 0 Explorer 0 Win Type - Total 0 Types 0/0/0/0/0/0/0/0/0/0 Lore% 17 Gallery% 13 Achievement% 13 Wizard Run 0 Options --------- Layout 1 ASCII 0 Keyboard 0 Movement Mouse Keybinds 0 Fullscreen 1 Font 18/SmallcapsGlow Map View 51x41 Zoom Use 0% Tactical HUD 0 Map Filters NONE Filters NONE Steam 1 RUN: 5c630b96-b85e-48bc-961c-5b8e13754f36